fUST/lending_fUST_20250704
["ID","MTS","AMOUNT","RATE_DAILY","PERIOD"]
[369560836,1751622650338,-460.0,0.00016712,2]
[369560838,1751622650347,-729.18,0.00016712,2]
[369560840,1751622650356,-875.06,0.00016712,2]
[369560842,1751622650365,-1882.39,0.00016712,2]
[369560844,1751622650374,-844.5,0.00016712,2]
[369560846,1751622650383,-460.0,0.00016712,2]
[369560848,1751622650392,-1003.3,0.00016712,2]
[369560850,1751622650401,-460.0,0.00016712,2]
[369560852,1751622650411,-1290.0,0.00016712,2]
[369560854,1751622650420,-460.0,0.00016712,2]
[369560856,1751622650430,-691.51,0.00016712,2]
[369560858,1751622650439,-942.96,0.00016712,2]
[369560860,1751622650449,-460.0,0.00016712,2]
[369560862,1751622650458,-460.0,0.00016712,2]
[369560864,1751622650467,-922.09,0.00016712,2]
[369560866,1751622650477,-460.0,0.00016712,2]
[369560868,1751622650486,-460.0,0.00016712,2]
[369560870,1751622650496,-460.0,0.00016712,2]
[369560872,1751622650505,-708.51,0.00016712,2]
[369560874,1751622650514,-460.0,0.00016712,2]
[369560876,1751622650523,-4274.49,0.00016712,2]
[369560878,1751622650532,-3492.71,0.00016712,2]
[369560880,1751622650541,-878.67,0.00016712,2]
[369560882,1751622650551,-1049.41,0.00016712,2]
[369560884,1751622650560,-460.0,0.00016712,2]
[369560886,1751622650569,-460.0,0.00016712,2]
[369560888,1751622650579,-2084.78,0.00016712,2]
[369560890,1751622650588,-465.77322582,0.00016712,2]
[369560892,1751622650597,-2770.79,0.00016712,2]
[369560894,1751622650606,-2445.28,0.00016712,2]
[369560896,1751622650615,-460.0,0.00016712,2]
[369560898,1751622650624,-3359.24164311,0.00016712,2]
[369560927,1751622650906,-460.0,0.00016438,2]
[369560929,1751622650915,-370.6395,0.00016438,2]
[369560931,1751622650927,-89.3605,0.00016438,2]
[369560933,1751622650936,-1354.06835689,0.00016712,2]
[369560935,1751622650945,-460.0,0.00016712,2]
[369560937,1751622650955,-790.27,0.00016712,2]
[369560939,1751622650964,-460.0,0.00016712,2]
[369560941,1751622650973,-460.0,0.00016712,2]
[369560943,1751622650983,-734.59,0.00016712,2]
[369560945,1751622650992,-460.0,0.00016712,2]
[369560947,1751622651001,-460.0,0.00016712,2]
[369560949,1751622651010,-674.82,0.00016712,2]
[369560951,1751622651020,-460.0,0.00016712,2]
[369560953,1751622651029,-460.0,0.00016712,2]
[369560955,1751622651038,-155.92188412,0.00016712,2]
[369560957,1751622651047,-460.0,0.00016712,2]
[369560959,1751622651057,-460.0,0.00016712,2]
[369560961,1751622651066,-717.55,0.00016712,2]
[369560963,1751622651075,-460.0,0.00016712,2]
[369560965,1751622651085,-460.0,0.00016712,2]
[369560967,1751622651094,-460.0,0.00016712,2]
[369560969,1751622651103,-3257.0,0.00016712,2]
[369560971,1751622651112,-460.0,0.00016712,2]
[369560973,1751622651121,-460.0,0.00016712,2]
[369560975,1751622651130,-460.0,0.00016712,2]
[369560977,1751622651140,-2068.03,0.00016712,2]
[369560979,1751622651149,-460.0,0.00016712,2]
[369560981,1751622651158,-460.0,0.00016712,2]
[369560983,1751622651167,-823.78,0.00016712,2]
[369560985,1751622651176,-460.0,0.00016712,2]
[369560987,1751622651185,-460.0,0.00016712,2]
[369560989,1751622651194,-713.63,0.00016712,2]
[369560991,1751622651203,-460.0,0.00016712,2]
[369560993,1751622651212,-1731.37,0.00016712,2]
[369560995,1751622651222,-1396.47,0.00016712,2]
[369560996,1751622651231,-460.0,0.00016712,2]
[369560998,1751622651241,-460.0,0.00016712,2]
[369561001,1751622651251,-1318.0,0.0001672,2]
[369561003,1751622651260,-290.60562185,0.00016749,2]
[369561005,1751622651270,-158.0,0.00016758,2]
[369561007,1751622651279,-160.0,0.00016775,2]
[369561009,1751622651289,-847.91215827,0.00016775,2]
[369561011,1751622651298,-213.97741257,0.00016775,2]
[369561013,1751622651307,-160.0,0.00016775,2]
[369561015,1751622651316,-837.48520791,0.00016775,2]
[369561016,1751622651326,-12578.03337979,0.00016775,2]
[369561018,1751622651335,-230.40116161,0.00016775,2]
[369561020,1751622651344,-168.0,0.00016796,2]
[369561022,1751622651354,-151.0,0.000168,2]
[369561024,1751622651363,-444.0,0.00016813,2]
[369561026,1751622651372,-151.0,0.000169,2]
[369561028,1751622651382,-10772.06535006,0.000169,2]
[369561030,1751622651391,-290.60562185,0.00016955,2]
[369561032,1751622651400,-1000.0,0.00016958,2]
[369561034,1751622651409,-1000.0,0.00016958,2]
[369561036,1751622651418,-1000.0,0.00016958,2]
[369561038,1751622651428,-1000.0,0.00016958,2]
[369561040,1751622651437,-1000.0,0.00016958,2]
[369561042,1751622651446,-1000.0,0.00016958,2]
[369561044,1751622651455,-1000.0,0.00016958,2]
[369561046,1751622651464,-1000.0,0.00016958,2]
[369561048,1751622651474,-537.96559561,0.00016958,2]
[369561050,1751622651483,-215.0738,0.00016958,2]
[369561052,1751622651493,-967.0,0.00016958,2]
[369561054,1751622651502,-646.0,0.00016958,2]
[369561056,1751622651511,-2152.0,0.00016958,2]
[369561058,1751622651521,-460.0,0.00016986,2]
[369561060,1751622651530,-460.0,0.00016986,2]
[369561062,1751622651539,-460.0,0.00016986,2]
[369561064,1751622651549,-460.0,0.00016986,2]
[369561066,1751622651558,-460.0,0.00016986,2]
[369561068,1751622651568,-460.0,0.00016986,2]
[369561070,1751622651577,-460.0,0.00016986,2]
[369561072,1751622651586,-498.61,0.00016986,2]
[369561074,1751622651596,-460.0,0.00016986,2]
[369561076,1751622651606,-437.76073033,0.00016986,2]
[369561078,1751622651615,-460.0,0.00016986,2]
[369561080,1751622651624,-460.0,0.00016986,2]
[369561082,1751622651633,-460.0,0.00016986,2]
[369561084,1751622651643,-460.0,0.00016986,2]
[369561086,1751622651655,-469.10159919,0.00016986,2]
[369561088,1751622651665,-460.0,0.00016986,2]
[369561090,1751622651674,-460.0,0.00016986,2]
[369561092,1751622651683,-438.29862174,0.00016986,2]
[369561094,1751622651693,-460.0,0.00016986,2]
[369561096,1751622651702,-497.99254408,0.00016986,2]
[369561098,1751622651712,-460.0,0.00016986,2]
[369561100,1751622651722,-460.0,0.00016986,2]
[369561102,1751622651731,-460.0,0.00016986,2]
[369561104,1751622651740,-462.5692108,0.00016986,2]
[369561106,1751622651750,-460.0,0.00016986,2]
[369561108,1751622651759,-494.45898315,0.00016986,2]
[369561110,1751622651768,-460.0,0.00016986,2]
[369561112,1751622651777,-460.0,0.00016986,2]
[369561114,1751622651787,-460.0,0.00016986,2]
[369561116,1751622651796,-460.0,0.00016986,2]
[369561118,1751622651806,-460.0,0.00016986,2]
[369561120,1751622651816,-460.0,0.00016986,2]
[369561122,1751622651825,-460.0,0.00016986,2]
[369561124,1751622651834,-460.0,0.00016986,2]
[369561126,1751622651843,-460.0,0.00016986,2]
[369561128,1751622651853,-460.0,0.00016986,2]
[369561130,1751622651862,-460.0,0.00016986,2]
[369561132,1751622651871,-460.0,0.00016986,2]
[369561134,1751622651881,-290.09,0.00016986,2]
[369561136,1751622651890,-460.0,0.00016986,2]
[369561138,1751622651898,-763.16,0.00016986,2]
[369561140,1751622651909,-460.0,0.00016986,2]
[369561142,1751622651918,-444.00234621,0.00016986,2]
[369561144,1751622651928,-460.0,0.00016986,2]
[369561146,1751622651937,-460.0,0.00016986,2]
[369561148,1751622651946,-460.0,0.00016986,2]
[369561150,1751622651956,-460.0,0.00016986,2]
[369561152,1751622651965,-460.0,0.00016986,2]
[369561154,1751622651974,-460.0,0.00016986,2]
[369561156,1751622651983,-460.0,0.00016986,2]
[369561158,1751622651993,-465.38985356,0.00016986,2]
[369561160,1751622652002,-460.0,0.00016986,2]
[369561162,1751622652013,-822.29,0.00016986,2]
[369561164,1751622652022,-460.0,0.00016986,2]
[369561166,1751622652032,-834.14,0.00016986,2]
[369561168,1751622652042,-460.0,0.00016986,2]
[369561170,1751622652051,-460.0,0.00016986,2]
[369561172,1751622652061,-460.0,0.00016986,2]
[369561174,1751622652070,-384.98290986,0.00016986,2]
[369561176,1751622652079,-460.0,0.00016986,2]
[369561178,1751622652088,-460.0,0.00016986,2]
[369561180,1751622652097,-460.0,0.00016986,2]
[369561182,1751622652106,-460.0,0.00016986,2]
[369561184,1751622652115,-460.0,0.00016986,2]
[369561186,1751622652125,-460.0,0.00016986,2]
[369561188,1751622652134,-207.46296943,0.00016986,2]
[369561190,1751622652143,-511.2843814,0.00016986,2]
[369561192,1751622652152,-468.54,0.00016986,2]
[369561194,1751622652162,-302.90885502,0.00016986,2]
[369561196,1751622652171,-986.97,0.00016986,2]
[369561198,1751622652180,-460.0,0.00016986,2]
[369561200,1751622652189,-460.0,0.00016986,2]
[369561202,1751622652198,-460.0,0.00016986,2]
[369561204,1751622652207,-460.0,0.00016986,2]
[369561206,1751622652216,-462.37,0.00016986,2]
[369561208,1751622652225,-672.42,0.00016986,2]
[369561210,1751622652234,-1030.62,0.00016986,2]
[369561212,1751622652250,-1162.38,0.00016986,2]
[369561214,1751622652270,-460.0,0.00016986,2]
[369561216,1751622652280,-460.0,0.00016986,2]
[369561218,1751622652289,-460.0,0.00016986,2]
[369561220,1751622652298,-460.0,0.00016986,2]
[369561222,1751622652307,-460.0,0.00016986,2]
[369561224,1751622652316,-460.0,0.00016986,2]
[369561226,1751622652325,-509.10880088,0.00016986,2]
[369561228,1751622652335,-460.0,0.00016986,2]
[369561230,1751622652343,-1036.43,0.00016986,2]
[369561232,1751622652351,-5342.47,0.00016986,2]
[369561234,1751622652360,-822.14,0.00016986,2]
[369561236,1751622652370,-729.28,0.00016986,2]
[369561238,1751622652379,-460.0,0.00016986,2]
[369561240,1751622652389,-460.0,0.00016986,2]
[369561242,1751622652398,-460.0,0.00016986,2]
[369561244,1751622652406,-1820.55,0.00016986,2]
[369561246,1751622652416,-460.0,0.00016986,2]
[369561248,1751622652425,-460.0,0.00016986,2]
[369561250,1751622652434,-1664.52,0.00016986,2]
[369561263,1751622652545,-460.0,0.00016986,2]
[369561265,1751622652554,-438.70914657,0.00016986,2]
[369561267,1751622652563,-1384.19,0.00016986,2]
[369561269,1751622652573,-516.08239761,0.00016986,2]
[369561271,1751622652582,-460.0,0.00016986,2]
[369561273,1751622652592,-460.0,0.00016986,2]
[369561275,1751622652601,-2116.5,0.00016986,2]
[369561277,1751622652610,-3633.5,0.00016986,2]
[369561279,1751622652619,-460.0,0.00016986,2]
[369561281,1751622652627,-2625.22,0.00016986,2]
[369561283,1751622652637,-1234.04,0.00016986,2]
[369561285,1751622652649,-511.32,0.00016986,2]
[369561287,1751622652659,-4684.85,0.00016986,2]
[369561288,1751622652668,-460.0,0.00016986,2]
[369561289,1751622652678,-992.43,0.00016986,2]
[369561290,1751622652687,-790.8,0.00016986,2]
[369561291,1751622652695,-1182.12,0.00016986,2]
[369561292,1751622652705,-979.7,0.00016986,2]
[369561293,1751622652714,-460.0,0.00016986,2]
[369561294,1751622652722,-460.0,0.00016986,2]
[369561295,1751622652732,-460.0,0.00016986,2]
[369561296,1751622652741,-460.0,0.00016986,2]
[369561297,1751622652751,-729.18,0.00016986,2]
[369561299,1751622652760,-875.06,0.00016986,2]
[369561301,1751622652769,-844.5,0.00016986,2]
[369561303,1751622652778,-1882.39,0.00016986,2]
[369561305,1751622652788,-460.0,0.00016986,2]
[369561307,1751622652797,-1003.3,0.00016986,2]
[369561309,1751622652806,-460.0,0.00016986,2]
[369561311,1751622652815,-1290.0,0.00016986,2]
[369561313,1751622652824,-691.51,0.00016986,2]
[369561315,1751622652833,-460.0,0.00016986,2]
[369561317,1751622652842,-942.96,0.00016986,2]
[369561319,1751622652851,-460.0,0.00016986,2]
[369561321,1751622652860,-460.0,0.00016986,2]
[369561323,1751622652869,-922.09,0.00016986,2]
[369561325,1751622652878,-460.0,0.00016986,2]
[369561327,1751622652887,-460.0,0.00016986,2]
[369561329,1751622652896,-708.51,0.00016986,2]
[369561331,1751622652905,-460.0,0.00016986,2]
[369561333,1751622652914,-460.0,0.00016986,2]
[369561335,1751622652923,-4274.49,0.00016986,2]
[369561337,1751622652933,-3492.71,0.00016986,2]
[369561339,1751622652941,-878.67,0.00016986,2]
[369561341,1751622652950,-1049.41,0.00016986,2]
[369561343,1751622652959,-460.0,0.00016986,2]
[369561345,1751622652969,-460.0,0.00016986,2]
[369561347,1751622652977,-2084.78,0.00016986,2]
[369561349,1751622652988,-2770.79,0.00016986,2]
[369561351,1751622652997,-2445.28,0.00016986,2]
[369561353,1751622653006,-460.0,0.00016986,2]
[369561355,1751622653015,-4713.31,0.00016986,2]
[369561357,1751622653024,-460.0,0.00016986,2]
[369561359,1751622653033,-460.0,0.00016986,2]
[369561361,1751622653042,-790.27,0.00016986,2]
[369561363,1751622653052,-154.70740319,0.00016986,2]
[369561365,1751622653062,-460.0,0.00016986,2]
[369561367,1751622653072,-734.59,0.00016986,2]
[369561369,1751622653082,-460.0,0.00016986,2]
[369561371,1751622653092,-674.82,0.00016986,2]
[369561373,1751622653101,-460.0,0.00016986,2]
[369561375,1751622653111,-460.0,0.00016986,2]
[369561377,1751622653120,-717.55,0.00016986,2]
[369561379,1751622653129,-460.0,0.00016986,2]
[369561381,1751622653139,-460.0,0.00016986,2]
[369561383,1751622653148,-460.0,0.00016986,2]
[369561385,1751622653157,-3257.0,0.00016986,2]
[369561387,1751622653169,-460.0,0.00016986,2]
[369561389,1751622653178,-460.0,0.00016986,2]
[369561391,1751622653187,-2068.03,0.00016986,2]
[369561393,1751622653197,-460.0,0.00016986,2]
[369561395,1751622653207,-460.0,0.00016986,2]
[369561397,1751622653216,-823.78,0.00016986,2]
[369561399,1751622653225,-460.0,0.00016986,2]
[369561401,1751622653234,-460.0,0.00016986,2]
[369561402,1751622653243,-713.63,0.00016986,2]
[369561404,1751622653253,-460.0,0.00016986,2]
[369561406,1751622653262,-1731.37,0.00016986,2]
[369561408,1751622653272,-1396.47,0.00016986,2]
[369561410,1751622653284,-460.0,0.00016986,2]
[369561412,1751622653293,-460.0,0.00016986,2]
[369561414,1751622653303,-500.25734729,0.00017063,2]
[369561416,1751622653312,-500.0,0.00017063,2]
[369561418,1751622653322,-151.0,0.000171,2]
[369561420,1751622653332,-444.0,0.0001713,2]
[369561422,1751622653341,-500.0,0.00017138,2]
[369561424,1751622653350,-500.46763292,0.00017138,2]
[369561426,1751622653361,-500.0,0.00017138,2]
[369561428,1751622653370,-500.0,0.00017138,2]
[369561430,1751622653379,-180.06119381,0.00017138,2]
[369561432,1751622653389,-172.43431246,0.00017138,2]
[369561434,1751622653398,-506.27152223,0.00017138,2]
[369561436,1751622653407,-500.0,0.00017138,2]
[369561438,1751622653417,-500.0,0.00017138,2]
[369561440,1751622653426,-500.0,0.00017138,2]
[369561442,1751622653435,-500.0,0.00017138,2]
[369561444,1751622653444,-500.0,0.00017138,2]
[369561446,1751622653453,-166.43033875,0.00017138,2]
[369561448,1751622653462,-500.0,0.00017138,2]
[369561450,1751622653473,-500.0,0.00017138,2]
[369561452,1751622653482,-318.95864407,0.00017138,2]
[369561454,1751622653491,-257.17269705,0.00017138,2]
[369561456,1751622653501,-500.0,0.00017138,2]
[369561458,1751622653510,-500.69974795,0.00017138,2]
[369561460,1751622653519,-500.0,0.00017138,2]
[369561462,1751622653529,-500.41145863,0.00017138,2]
[369561464,1751622653539,-500.0,0.00017138,2]
[369561466,1751622653548,-500.0,0.00017138,2]
[369561468,1751622653559,-500.0,0.00017138,2]
[369561470,1751622653569,-500.0,0.00017138,2]
[369561472,1751622653579,-376.39436885,0.00017138,2]
[369561474,1751622653588,-290.60562185,0.0001716,2]
[369561476,1751622653599,-10772.0653499,0.00017176,2]
[369561478,1751622653609,-500.59348283,0.00017176,2]
[369561480,1751622653618,-500.0,0.00017176,2]
[369561482,1751622653628,-500.0,0.00017176,2]
[369561484,1751622653638,-444.0,0.00017201,2]
[369561485,1751622653648,-249.8,0.00017227,2]
[369561488,1751622653658,-460.0,0.0001726,2]
[369561489,1751622653668,-460.0,0.0001726,2]
[369561491,1751622653677,-460.0,0.0001726,2]
[369561493,1751622653687,-460.0,0.0001726,2]
[369561496,1751622653697,-460.0,0.0001726,2]
[369561498,1751622653707,-407.31820377,0.0001726,2]
[369561499,1751622653716,-460.0,0.0001726,2]
[369561501,1751622653726,-460.0,0.0001726,2]
[369561504,1751622653735,-460.0,0.0001726,2]
[369561505,1751622653745,-460.0,0.0001726,2]
[369561507,1751622653754,-460.0,0.0001726,2]
[369561509,1751622653763,-460.0,0.0001726,2]
[369561511,1751622653773,-460.0,0.0001726,2]
[369561513,1751622653782,-460.0,0.0001726,2]
[369561515,1751622653791,-460.0,0.0001726,2]
[369561517,1751622653800,-460.0,0.0001726,2]
[369561519,1751622653809,-460.0,0.0001726,2]
[369561521,1751622653819,-460.0,0.0001726,2]
[369561523,1751622653829,-460.0,0.0001726,2]
[369561525,1751622653840,-460.0,0.0001726,2]
[369561527,1751622653850,-460.0,0.0001726,2]
[369561529,1751622653859,-460.0,0.0001726,2]
[369561531,1751622653868,-387.75409583,0.0001726,2]
[369561533,1751622653878,-177.65548772,0.0001726,2]
[369561535,1751622653887,-460.0,0.0001726,2]
[369561537,1751622653898,-460.0,0.0001726,2]
[369561539,1751622653908,-460.0,0.0001726,2]
[369561541,1751622653917,-460.0,0.0001726,2]
[369561543,1751622653927,-763.16,0.0001726,2]
[369561545,1751622653936,-460.0,0.0001726,2]
[369561547,1751622653946,-460.0,0.0001726,2]
[369561549,1751622653955,-460.0,0.0001726,2]
[369561551,1751622653965,-460.0,0.0001726,2]
[369561553,1751622653975,-460.0,0.0001726,2]
[369561555,1751622653984,-286.65784669,0.0001726,2]
[369561557,1751622653994,-460.0,0.0001726,2]
[369561559,1751622654003,-460.0,0.0001726,2]
[369561561,1751622654012,-438.26491176,0.0001726,2]
[369561563,1751622654022,-460.0,0.0001726,2]
[369561565,1751622654031,-834.14,0.0001726,2]
[369561567,1751622654041,-460.0,0.0001726,2]
[369561569,1751622654050,-460.0,0.0001726,2]
[369561571,1751622654059,-460.0,0.0001726,2]
[369561573,1751622654069,-460.0,0.0001726,2]
[369561575,1751622654079,-460.0,0.0001726,2]
[369561577,1751622654089,-460.0,0.0001726,2]
[369561579,1751622654098,-460.0,0.0001726,2]
[369561581,1751622654108,-202.86931206,0.0001726,2]
[369561583,1751622654117,-986.97,0.0001726,2]
[369561585,1751622654126,-460.0,0.0001726,2]
[369561587,1751622654136,-538.23191412,0.0001726,2]
[369561589,1751622654145,-460.0,0.0001726,2]
[369561591,1751622654154,-460.0,0.0001726,2]
[369561593,1751622654163,-462.37,0.0001726,2]
[369561595,1751622654173,-672.42,0.0001726,2]
[369561597,1751622654184,-1030.62,0.0001726,2]
[369561599,1751622654194,-1162.38,0.0001726,2]
[369561601,1751622654203,-556.04386943,0.0001726,2]
[369561603,1751622654213,-460.0,0.0001726,2]
[369561606,1751622654222,-460.0,0.0001726,2]
[369561608,1751622654232,-460.0,0.0001726,2]
[369561610,1751622654242,-460.0,0.0001726,2]
[369561612,1751622654251,-460.0,0.0001726,2]
[369561613,1751622654260,-460.0,0.0001726,2]
[369561615,1751622654269,-1036.43,0.0001726,2]
[369561617,1751622654278,-5342.47,0.0001726,2]
[369561619,1751622654287,-822.14,0.0001726,2]
[369561621,1751622654296,-729.28,0.0001726,2]
[369561623,1751622654305,-460.0,0.0001726,2]
[369561626,1751622654315,-460.0,0.0001726,2]
[369561627,1751622654324,-460.0,0.0001726,2]
[369561630,1751622654334,-1820.55,0.0001726,2]
[369561631,1751622654343,-460.0,0.0001726,2]
[369561633,1751622654353,-460.0,0.0001726,2]
[369561635,1751622654362,-1664.52,0.0001726,2]
[369561637,1751622654371,-460.0,0.0001726,2]
[369561639,1751622654380,-1384.19,0.0001726,2]
[369561641,1751622654389,-460.0,0.0001726,2]
[369561643,1751622654398,-473.6004463,0.0001726,2]
[369561645,1751622654407,-2116.5,0.0001726,2]
[369561647,1751622654417,-1315.26564668,0.0001726,2]
[369561653,1751622654459,-2318.23435332,0.0001726,2]
[369561655,1751622654469,-399.21991543,0.0001726,2]
[369561657,1751622654478,-2625.22,0.0001726,2]
[369561659,1751622654488,-1234.04,0.0001726,2]
[369561661,1751622654497,-511.32,0.0001726,2]
[369561663,1751622654506,-4114.45050125,0.0001726,2]
[369561665,1751622654517,-570.39949875,0.0001726,2]
[369561667,1751622654527,-460.0,0.0001726,2]
[369561669,1751622654536,-1.94933831,0.0001726,2]
[369568957,1751622996787,7966.5942125,0.00014882,2]
[369568962,1751623140018,2148.48203926,0.0001501,2]
[369568965,1751623346791,383.841896,0.00013699,2]
[369568968,1751623591786,29448.70473834,0.00015,2]
[369568969,1751623591812,20000.0,0.00015,2]
[369568970,1751623591834,20000.0,0.00015,2]
[369568971,1751623591857,20000.0,0.00015,2]
[369568972,1751623591880,20000.0,0.00015,2]
[369568973,1751623591904,20000.0,0.00015,2]
[369568974,1751623591926,20000.0,0.00015,2]
[369568975,1751623591948,20000.0,0.00015,2]
[369568976,1751623591975,20000.0,0.00015,2]
[369568977,1751623591996,20000.0,0.00015,2]
[369568978,1751623592018,20000.0,0.00015,2]
[369568979,1751623592042,20000.0,0.00015,2]
[369568980,1751623592063,20000.0,0.00015,2]
[369568981,1751623592084,20000.0,0.00015,2]
[369568982,1751623592106,20000.0,0.00015,2]
[369568983,1751623592128,20000.0,0.00015,2]
[369568984,1751623593023,-491.2893682,0.00015,2]
[369568985,1751623595607,-214.10938812,0.00015,2]
[369568986,1751623598218,-192.29515522,0.00015,2]
[369568987,1751623600299,-227.64687954,0.00015,2]
[369568988,1751623605993,-512.77910502,0.00015,2]
[369568989,1751623608742,5000.0,0.00014801,2]
[369568990,1751623610579,-171.327517,0.00015,2]
[369568991,1751623613056,-166.19655764,0.00015,2]
[369568992,1751623617312,-257.16885389,0.00015,2]
[369568994,1751623620583,-248.34,0.00015,2]
[369568995,1751623623212,-170.66380151,0.00014999,2]
[369568996,1751623623933,2061.47833069,0.00014801,2]
[369568997,1751623623969,2938.52166931,0.00014801,2]
[369568998,1751623628696,-129.33619849,0.00014999,2]
[369568999,1751623628718,-24.00135727,0.00015,2]
[369569000,1751623632400,-280.21463934,0.00015,2]
[369569001,1751623637710,-222.69857059,0.00015,2]
[369569002,1751623639332,5000.0,0.00014801,2]
[369569003,1751623639951,-173.32999976,0.00015,2]
[369569004,1751623644149,-269.93398722,0.00015,2]
[369569005,1751623646062,-262.74358254,0.00015,2]
[369569006,1751623648495,-210.95389937,0.00015,2]
[369569007,1751623653377,-169.07743993,0.00015,2]
[369569008,1751623655746,2061.47833069,0.00014801,2]
[369569009,1751623655780,2938.52166931,0.00014801,2]
[369569010,1751623660116,-160.90566697,0.00015,2]
[369569011,1751623663113,-164.98283611,0.00015,2]
[369569012,1751623668757,-187.74628509,0.00015,2]
[369569013,1751623671197,-154.89426766,0.00015,2]
[369569014,1751623673353,5000.0,0.00014801,2]
[369569015,1751623676240,-157.13413682,0.00015,2]
[369569016,1751623678647,-225.98567085,0.00015,2]
[369569017,1751623681135,-194.54624234,0.00015,2]
[369569018,1751623684916,-154.72015288,0.00015,2]
[369569019,1751623686564,-293.71595899,0.00014999,2]
[369569020,1751623689324,2061.47833069,0.00014801,2]
[369569021,1751623689712,-155.65973445,0.00014801,2]
[369569022,1751623693226,-151.0,0.00014801,2]
[369569023,1751623697995,-229.75502602,0.00014801,2]
[369569024,1751623701087,-250.63901546,0.00014801,2]
[369569025,1751623703848,-155.87392898,0.00014801,2]
[369569026,1751623709416,-158.37364866,0.00014801,2]
[369569027,1751623711086,-179.48351142,0.00014801,2]
[369569028,1751623712762,-152.0,0.00014801,2]
[369569029,1751623716641,-225.7950751,0.00014801,2]
[369569030,1751623718910,-197.38764053,0.00014801,2]
[369569031,1751623724684,-163.97164733,0.00014801,2]
[369569036,1751623757090,3860.4932179,0.00014566,2]
[369569037,1751623773953,1224.626562,0.00014565,2]
[369569060,1751623832008,-918.58244136,0.00014801,2]
[369569061,1751623832018,-300.0,0.00014999,2]
[369569062,1751623832027,-505.0,0.00014999,2]
[369569063,1751623832040,-15056.27370129,0.00015,2]
[369569064,1751623832050,-248.33999999,0.00015293,2]
[369569065,1751623832060,-24900.0,0.00015394,2]
[369569066,1751623832069,-352.7291212,0.00015615,2]
[369569067,1751623832080,-500.0,0.00015615,2]
[369569068,1751623832091,-500.0,0.00015616,2]
[369569069,1751623832100,-6342.0,0.00016,2]
[369569070,1751623832110,-2369.19,0.000161,2]
[369569071,1751623832119,-10074.20553244,0.000162,2]
[369569072,1751623832129,-3359.16824789,0.0001621,2]
[369569073,1751623832145,-6715.03728439,0.0001621,2]
[369569074,1751623832155,-619.53053224,0.00016229,2]
[369569075,1751623832164,-158.37364865,0.00016328,2]
[369569076,1751623832173,-227.64687954,0.00016338,2]
[369569077,1751623832183,-150.29281361,0.00016338,2]
[369569078,1751623832192,-255.0,0.00016356,2]
[369569079,1751623832202,-420.0,0.00016416,2]
[369569080,1751623832211,-178.092,0.00016428,2]
[369569081,1751623832221,-493.38,0.00016428,3]
[369569082,1751623832231,-493.38,0.00016428,3]
[369569083,1751623832241,-247.95,0.00016428,3]
[369569084,1751623832251,-743.9,0.00016428,3]
[369569085,1751623832261,-207.4,0.00016428,2]
[369569086,1751623832271,-864.12,0.00016437,2]
[369569087,1751623832281,-359.52903559,0.00016437,2]
[369569088,1751623832291,-309.70872111,0.00016437,2]